bitfinex/quotes_SOLUSD_20220307
["timestamp","ask_amount","ask_price","bid_price","bid_amount"]
[1646664739560,22.9446,85.585,85.483,185.66]
[1646664739760,22.9446,85.585,85.487,185.66]
[1646664739967,22.9446,85.585,85.486,58.49]
[1646664739968,22.9446,85.585,85.491,185.66]
[1646664740160,22.9446,85.585,85.493,116.1]
[1646664740361,22.9446,85.585,85.501,116.1]
[1646664740564,22.9446,85.585,85.505,116.1]
[1646664740762,22.9446,85.585,85.512,58.49]
[1646664741163,11.844,85.584,85.48,16.82]
[1646664741361,11.844,85.584,85.45,16.82]
[1646664741362,116.1,85.579,85.45,16.82]
[1646664741561,116.1,85.577,85.45,11.82]
[1646664741762,58.5065,85.56,85.45,11.82]
[1646664741963,51.3107,85.559,85.451,47.91786241]
[1646664742161,6.25,85.558,85.452,116.1]
[1646664742363,5.847,85.557,85.452,116.1]
[1646664742564,17.552,85.54,85.461,174.59]
[1646664742864,5.847,85.539,85.463,174.59]
[1646664743065,22.8945,85.557,85.475,116.1]
[1646664743267,22.8945,85.557,85.477,116.1]
[1646664743472,22.8945,85.557,85.479,116.1]
[1646664743663,22.8945,85.557,85.481,116.1]
[1646664743863,22.8945,85.557,85.476,64.74]
[1646664743864,22.8945,85.557,85.485,116.1]
[1646664744065,22.8945,85.557,85.487,116.1]
[1646664744264,22.8945,85.557,85.489,116.1]
[1646664744566,22.8945,85.557,85.488,6.25]
[1646664744567,22.8945,85.557,85.492,58.49]
[1646664744766,22.8945,85.557,85.499,116.1]
[1646664744968,22.8945,85.557,85.503,116.1]
[1646664745168,22.8945,85.557,85.507,116.1]
[1646664745367,22.8945,85.557,85.51,58.49]
[1646664745568,22.8945,85.557,85.512,58.49]
[1646664745769,22.8945,85.557,85.513,0.25]
[1646664746368,22.5692,85.559,85.515,116.1]
[1646664746568,22.5692,85.559,85.517,116.1]
[1646664746769,16.82,85.61,85.519,116.1]
[1646664746968,23.13,85.584,85.52,6.25]
[1646664747181,28.974,85.584,85.52,6.25]
[1646664747682,23.13,85.584,85.52,6.25]
[1646664747882,23.13,85.584,85.52,0.25]
[1646664748082,23.13,85.584,85.521,116.1]
[1646664748288,5.844,85.599,85.525,116.1]
[1646664748482,5.844,85.599,85.524,46.93388724]
[1646664748483,28.973,85.611,85.534,0.25311209]
[1646664748682,28.973,85.611,85.537,116.1]
[1646664748883,23.13,85.611,85.543,116.1]
[1646664749083,23.13,85.611,85.549,116.1]
[1646664749283,23.13,85.611,85.553,116.1]
[1646664749483,23.13,85.611,85.558,174.59]
[1646664749684,23.13,85.611,85.559,6.25]
[1646664749887,23.13,85.611,85.564,116.1]
[1646664750185,23.13,85.611,85.566,116.1]
[1646664750384,23.13,85.611,85.568,116.1]
[1646664750585,23.13,85.611,85.569,6.25]
[1646664750789,6.0,85.61,85.57,48.4205304]
[1646664750986,6.0,85.61,85.571,0.25]
[1646664752684,6.0,85.635,85.571,0.25]
[1646664752886,6.09,85.634,85.571,0.25]
[1646664753086,6.0,85.633,85.571,0.25]
[1646664753291,6.09,85.632,85.571,0.25]
[1646664753585,17.5316,85.63,85.571,0.25]
[1646664753785,12.091,85.629,85.571,0.25]
[1646664753985,6.091,85.629,85.571,0.25]
[1646664754187,0.25,85.629,85.571,0.25]
[1646664754686,0.25,85.635,85.571,0.25]
[1646664755587,26.94426119,85.635,85.565,58.49]
[1646664755789,0.22708427,85.633,85.566,0.25]
[1646664755987,0.22708427,85.631,85.566,0.25]
[1646664756187,0.22708427,85.629,85.566,0.25]
[1646664756388,0.22708427,85.629,85.55,17.5332]
[1646664756389,5.841,85.628,85.55,17.5332]
[1646664756589,0.22708427,85.626,85.52,14.05]
[1646664756787,0.22708427,85.624,85.5,72.54]
[1646664756989,116.1,85.622,85.5,72.54]
[1646664757189,0.22708427,85.619,85.501,6.0]
[1646664757487,17.5387,85.6,85.51,17.5414]
[1646664757687,53.0722,85.599,85.511,64.74]
[1646664758292,47.2282,85.599,85.512,69.56]
[1646664758490,47.2282,85.599,85.513,64.74]
[1646664758690,47.2282,85.599,85.53,17.5364]
[1646664758891,47.2282,85.599,85.531,111.38928701]
[1646664759990,47.2282,85.599,85.541,58.49]
[1646664760191,47.2282,85.599,85.542,6.25]
[1646664760391,46.9782,85.599,85.542,6.25]
[1646664760592,26.69426119,85.632,85.543,58.49]
[1646664760793,48.4184,85.636,85.546,69.56]
[1646664760992,48.4184,85.636,85.553,58.49]
[1646664761193,48.4184,85.636,85.554,6.25]
[1646664761393,48.4184,85.636,85.557,69.56]
[1646664761592,48.4184,85.636,85.56,174.93202639]
[1646664761791,48.4184,85.636,85.561,6.25]
[1646664761991,48.4184,85.636,85.571,58.49]
[1646664762192,48.4184,85.636,85.572,6.25]
[1646664762392,5.841,85.665,85.572,6.25]
[1646664762592,48.4184,85.664,85.58,58.4089]
[1646664762794,48.4184,85.664,85.581,6.25]
[1646664762992,48.4184,85.664,85.581,64.74]
[1646664763396,48.4184,85.664,85.592,36.34176114]
[1646664763591,48.4184,85.664,85.593,64.74]
[1646664763795,48.4184,85.664,85.593,58.74]
[1646664763993,6.089,85.663,85.593,58.74]
[1646664764395,5.839,85.663,85.593,58.74]
[1646664764593,5.839,85.663,85.594,6.0]
[1646664764797,48.4184,85.664,85.601,58.49]
[1646664764995,5.839,85.674,85.602,75.81]
[1646664765195,5.838,85.68,85.603,58.49]
[1646664765395,5.838,85.68,85.604,6.25]
[1646664765597,5.838,85.688,85.604,6.25]
[1646664765796,5.838,85.688,85.611,116.1]
[1646664765996,70.5935,85.689,85.615,116.1]
[1646664766194,0.25,85.688,85.619,116.1]
[1646664766396,0.25,85.688,85.621,116.1]
[1646664766593,0.25,85.688,85.62,6.25]
[1646664766594,0.25,85.688,85.623,116.1]
[1646664766794,0.25,85.688,85.624,0.25]
[1646664767094,0.25,85.688,85.633,58.49]
[1646664767295,0.25,85.688,85.638,116.1]
[1646664767495,0.25,85.688,85.639,58.49]
[1646664768097,17.5205,85.68,85.624,0.25]
[1646664768299,0.25,85.679,85.619,0.25]
[1646664768500,0.25,85.679,85.61,17.5208]
[1646664768698,29.26299645,85.679,85.588,116.1]
[1646664768898,33.07653526,85.678,85.59,116.1]
[1646664769198,17.5226,85.67,85.6,17.5218]
[1646664769399,0.25,85.669,85.601,58.49]
[1646664769599,0.25,85.669,85.603,58.49]
[1646664770601,17.5242,85.66,85.604,0.25]
[1646664770909,0.25,85.669,85.604,0.25]
[1646664771206,0.25,85.675,85.61,17.5217]
[1646664771402,0.25,85.675,85.606,116.1]
[1646664771403,0.25,85.676,85.611,0.25]
[1646664771803,2.83613526,85.677,85.611,0.25]
[1646664772002,24.4024,85.678,85.611,0.25]
[1646664772202,24.4024,85.678,85.621,116.1]
[1646664772404,24.4024,85.678,85.623,116.1]
[1646664772604,24.4024,85.678,85.624,6.25]
[1646664772905,24.4024,85.678,85.625,6.25]
[1646664773603,24.4024,85.678,85.625,0.25]
[1646664774011,24.4024,85.678,85.623,0.25]
[1646664774603,24.4024,85.678,85.631,58.49]
[1646664774804,24.4024,85.678,85.633,58.49]
[1646664775103,24.4024,85.678,85.634,0.25]
[1646664775304,24.4024,85.678,85.634,6.25]
[1646664775605,24.4024,85.678,85.634,0.25]
[1646664778109,17.5235,85.67,85.6,31.5739]
[1646664778304,17.5235,85.67,85.601,6.25]
[1646664778305,0.11516424,85.669,85.601,6.25]
[1646664779009,0.11516424,85.669,85.601,0.25]
[1646664779205,0.11516424,85.669,85.582,180.84]
[1646664779405,5.838,85.677,85.61,17.5222]
[1646664779605,0.25,85.676,85.611,38.94137409]
[1646664780406,26.42686119,85.676,85.611,38.94137409]
[1646664780805,17.5224,85.67,85.611,38.94137409]
[1646664781006,0.25,85.669,85.62,17.52]
[1646664781707,0.25,85.669,85.611,38.94137409]
[1646664782106,0.25,85.674,85.611,38.94137409]
[1646664782309,0.25,85.675,85.62,17.5203]
[1646664782506,0.25,85.677,85.621,0.25]
[1646664783109,0.25,85.677,85.611,38.69137409]
[1646664783308,17.522,85.67,85.611,38.69137409]
[1646664783509,0.25,85.669,85.611,38.69137409]
[1646664783708,5.838,85.668,85.612,6.0]
[1646664783909,0.25,85.667,85.611,38.69137409]
[1646664784110,4.338,85.666,85.611,38.69137409]
[1646664784308,0.25,85.665,85.62,17.5198]
[1646664784509,0.25,85.665,85.607,1.499]
[1646664784711,5.838,85.664,85.608,0.25]
[1646664784911,23.716,85.663,85.606,0.25]
[1646664785212,23.716,85.663,85.585,6.25]
[1646664785410,17.5244,85.66,85.59,16.0248]
[1646664785610,6.089,85.659,85.591,44.28769237]
[1646664786014,0.25,85.659,85.591,44.28769237]
[1646664786210,5.839,85.658,85.581,58.49]
[1646664786415,17.5264,85.65,85.581,58.49]
[1646664786615,12.09,85.649,85.559,1.5]
[1646664786809,12.09,85.649,85.56,6.0]
[1646664787012,41.10299645,85.649,85.561,1.5]
[1646664787211,26.17686119,85.648,85.562,64.49]
[1646664787411,17.5307,85.63,85.562,64.49]
[1646664787611,23.2368,85.629,85.563,0.25]
[1646664787812,5.841,85.628,85.563,6.25]
[1646664788011,0.25,85.627,85.563,6.0]
[1646664788212,5.841,85.626,85.563,6.0]
[1646664788438,0.25,85.625,85.563,6.0]
[1646664788635,0.1687574,85.619,85.54,23.537]
[1646664788833,0.1687574,85.617,85.541,1.5]
[1646664789033,0.1707737,85.615,85.523,59.99]
[1646664789236,0.1707737,85.613,85.523,59.99]
[1646664789433,58.4646,85.61,85.524,44.55623586]
[1646664789733,0.21783648,85.607,85.525,1.5]
[1646664789932,116.1,85.605,85.525,1.5]
[1646664790133,12.093,85.604,85.526,6.0]
[1646664790333,6.25,85.603,85.527,1.75]
[1646664790536,5.843,85.602,85.528,6.0]
[1646664790736,30.7049,85.601,85.529,0.25]
[1646664790934,5.843,85.6,85.529,0.25]
[1646664791135,0.25,85.599,85.53,17.5389]
[1646664791350,5.843,85.598,85.531,6.25]
[1646664791539,6.25,85.597,85.531,6.25]
[1646664791838,5.843,85.596,85.531,6.25]
[1646664792037,6.25,85.595,85.531,6.25]
[1646664792238,5.843,85.594,85.531,6.25]
[1646664792437,6.25,85.593,85.531,6.25]
[1646664792636,5.843,85.592,85.531,6.25]
[1646664792837,17.5387,85.59,85.511,1.5]
[1646664793038,17.5387,85.59,85.49,58.4717]
[1646664793039,116.1,85.588,85.512,6.0]
[1646664793238,116.1,85.586,85.512,6.0]
[1646664793437,0.36848023,85.585,85.463,19.4376]
[1646664793639,14.05,85.57,85.472,6.0]
[1646664793838,0.36848023,85.568,85.473,36.63489066]
[1646664794038,0.36848023,85.568,85.48,17.5489]
[1646664794238,5.846,85.567,85.481,12.096]
[1646664794439,6.25,85.566,85.481,6.25]
[1646664794638,5.846,85.565,85.481,6.25]
[1646664794842,6.25,85.564,85.481,0.25]
[1646664795138,5.846,85.563,85.475,0.25]
[1646664795339,29.959,85.562,85.475,0.25]
[1646664795539,17.5453,85.56,85.481,116.1]
[1646664795740,12.096,85.559,85.482,6.25]
[1646664795938,6.25,85.559,85.482,6.25]
[1646664796140,0.25,85.559,85.482,6.25]
[1646664796442,0.25,85.559,85.483,6.0]
[1646664796642,0.25,85.559,85.482,0.25]
[1646664796643,0.25,85.559,85.49,17.545]
[1646664796844,0.25,85.559,85.482,0.25]
[1646664796845,17.5473,85.55,85.491,6.0]
[1646664797045,5.846,85.549,85.491,6.0]
[1646664797246,0.25,85.548,85.474,6.0]
[1646664797443,5.847,85.547,85.474,6.0]
[1646664797641,0.25,85.546,85.474,6.0]
[1646664797844,17.5507,85.54,85.474,6.0]
[1646664798046,6.097,85.539,85.474,6.0]
[1646664798245,0.15828768,85.537,85.447,6.0]
[1646664798447,0.15828768,85.535,85.435,6.0]
[1646664798645,5.848,85.534,85.436,116.1]
[1646664798848,6.25,85.533,85.438,115.6]
[1646664799046,5.848,85.532,85.439,47.40268998]
[1646664799247,29.2493,85.531,85.44,58.49]
[1646664799448,17.5558,85.52,85.439,41.40268998]
[1646664799649,116.1,85.518,85.44,5.849]
[1646664799847,6.25,85.517,85.44,5.849]
[1646664800049,5.849,85.516,85.439,41.40268998]
[1646664800249,6.25,85.515,85.439,41.40268998]
[1646664800548,6.25,85.515,85.421,5.849]
[1646664800549,5.849,85.514,85.421,5.849]
[1646664800749,6.25,85.513,85.432,5.849]
[1646664800948,5.849,85.512,85.42,0.5851168]
[1646664801150,17.5623,85.5,85.43,17.5583]
[1646664801348,6.25,85.499,85.43,17.5583]
[1646664801550,6.25,85.499,85.431,36.98154904]
[1646664801752,47.251,85.498,85.431,36.98154904]
[1646664801949,0.25,85.497,85.431,36.98154904]
[1646664802152,6.1,85.497,85.432,6.0]
[1646664802351,47.251,85.498,85.432,6.0]
[1646664802749,14.05,85.55,85.443,116.1]
[1646664802950,14.05,85.55,85.442,69.56]
[1646664802951,53.5315,85.537,85.445,116.1]
[1646664803149,5.848,85.536,85.451,116.1]
[1646664803350,47.5315,85.537,85.455,116.1]
[1646664803550,47.5315,85.537,85.47,17.5439]
[1646664803751,0.25,85.536,85.471,51.28579972]
[1646664803954,47.5315,85.537,85.471,51.28579972]
[1646664804555,6.0,85.536,85.471,39.43879972]
[1646664805056,6.0,85.536,85.471,39.18879972]
[1646664805355,122.197,85.535,85.429,58.49]
[1646664805554,6.0,85.534,85.43,6.0]
[1646664805754,0.25,85.533,85.431,59.12014315]
[1646664805954,0.25,85.533,85.432,6.0]
[1646664806156,17.5542,85.53,85.45,17.5538]
[1646664806355,6.25,85.529,85.452,43.7827593]
[1646664807256,6.25,85.529,85.453,6.0]
[1646664807655,6.25,85.529,85.454,0.25]
[1646664807956,6.25,85.529,85.46,17.5529]
[1646664808156,0.25,85.529,85.461,0.25]
[1646664808356,0.25,85.534,85.461,0.25]
[1646664808956,5.848,85.533,85.47,17.5511]
[1646664809159,6.0,85.532,85.461,0.25]
[1646664809358,6.0,85.535,85.461,0.25]
[1646664809557,5.848,85.534,85.461,0.25]
[1646664809757,6.0,85.533,85.461,0.25]
[1646664810157,5.848,85.532,85.461,0.25]
[1646664810357,6.25,85.531,85.46,0.25]
[1646664810558,5.848,85.53,85.459,6.0]
[1646664810858,116.1,85.528,85.453,6.0]
[1646664811058,116.1,85.526,85.452,43.7827593]
[1646664811258,128.198,85.525,85.452,43.7827593]
[1646664811458,128.198,85.525,85.453,6.0]
[1646664811459,12.098,85.525,85.453,6.0]
[1646664811659,22.7898,85.524,85.453,6.0]
[1646664811858,12.098,85.523,85.452,43.7827593]
[1646664812258,12.098,85.523,85.453,6.0]
[1646664812961,12.098,85.523,85.452,43.7827593]
[1646664813161,12.098,85.523,85.453,0.25]
[1646664813360,12.098,85.523,85.453,6.25]
[1646664813564,6.25,85.523,85.453,6.25]
[1646664813760,5.848,85.522,85.46,17.5528]
[1646664813961,5.848,85.522,85.461,0.25]
[1646664813962,6.25,85.521,85.461,0.25]
[1646664814161,5.848,85.52,85.461,0.25]
[1646664814361,0.25,85.519,85.461,0.25]
[1646664814561,5.848,85.518,85.461,0.25]
[1646664814761,0.25,85.517,85.461,0.25]
[1646664814964,5.848,85.516,85.461,0.25]
[1646664815161,0.25,85.515,85.47,17.5514]
[1646664815962,7.78,85.515,85.47,17.5514]
[1646664816361,7.78,85.515,85.46,17.5534]
[1646664816661,7.78,85.515,85.461,0.25]
[1646664816865,7.78,85.515,85.431,0.63014315]
[1646664817062,7.78,85.515,85.431,6.88014315]
[1646664817261,5.849,85.514,85.431,6.88014315]
[1646664817466,17.5577,85.51,85.44,17.5576]
[1646664817664,6.099,85.509,85.441,6.25]
[1646664817864,6.099,85.509,85.442,40.92196721]
[1646664818063,6.099,85.509,85.443,6.0]
[1646664818264,0.25,85.509,85.443,6.0]
[1646664818463,0.25,85.509,85.45,17.556]
[1646664818665,0.25,85.509,85.451,6.0]
[1646664818866,0.25,85.512,85.451,6.0]
[1646664819469,6.25,85.512,85.451,6.0]
[1646664820871,0.13199757,85.508,85.451,6.0]
[1646664821073,116.1,85.506,85.431,6.63014315]
[1646664821370,116.1,85.504,85.432,0.25]
[1646664821570,116.1,85.502,85.432,0.25]
[1646664821770,37.0188,85.501,85.432,0.25]
[1646664821971,37.0188,85.501,85.44,17.5585]
[1646664822184,31.0188,85.501,85.441,6.0]
[1646664822384,6.0,85.5,85.441,6.0]
[1646664822587,0.25,85.499,85.441,6.0]
[1646664822784,0.25,85.499,85.433,6.0]
[1646664823384,5.849,85.498,85.433,6.0]
[1646664823687,6.25,85.497,85.433,6.0]
[1646664823886,5.849,85.496,85.433,6.0]
[1646664824085,6.25,85.495,85.433,6.0]
[1646664824286,17.5609,85.49,85.433,6.0]
[1646664824485,12.099,85.489,85.431,0.63014315]
[1646664825285,22.8826,85.488,85.431,0.63014315]
[1646664825488,12.099,85.487,85.431,0.63014315]
[1646664826088,17.5632,85.48,85.431,0.63014315]
[1646664826287,0.25,85.479,85.431,0.63014315]
[1646664828387,6.25,85.485,85.431,0.63014315]
[1646664828587,5.849,85.484,85.431,0.63014315]
[1646664828787,6.25,85.483,85.431,0.63014315]
[1646664828990,5.849,85.482,85.431,0.63014315]
[1646664829188,6.25,85.481,85.431,0.63014315]
[1646664829388,5.849,85.48,85.431,0.63014315]
[1646664829593,6.25,85.479,85.431,0.63014315]
[1646664829789,5.851,85.478,85.431,0.63014315]
[1646664829989,6.25,85.477,85.431,0.63014315]
[1646664830191,5.851,85.476,85.431,0.63014315]
[1646664830492,30.1984,85.475,85.431,0.63014315]
[1646664830692,5.851,85.474,85.431,0.63014315]
[1646664830890,0.25,85.473,85.431,0.63014315]
[1646664831691,5.851,85.472,85.431,0.63014315]
[1646664831893,17.5642,85.47,85.431,0.63014315]
[1646664832191,12.101,85.469,85.431,0.63014315]
[1646664832791,6.25,85.469,85.431,0.63014315]
[1646664832995,5.851,85.483,85.431,0.63014315]
[1646664833196,29.6113,85.506,85.431,0.63014315]
[1646664833395,116.1,85.505,85.431,0.63014315]
[1646664833593,5.849,85.487,85.431,0.63014315]
[1646664834294,0.25,85.479,85.431,0.63014315]
[1646664834494,24.0123,85.479,85.431,0.63014315]
[1646664834895,23.7623,85.479,85.431,0.63014315]
[1646664835195,210.73,85.57,85.431,0.63014315]
[1646664835395,47.0428,85.525,85.44,17.5583]
[1646664835598,47.0428,85.525,85.441,6.0]
[1646664836097,5.849,85.524,85.441,6.0]
[1646664836397,6.0,85.523,85.431,0.63014315]
[1646664836600,116.1,85.519,85.431,0.63014315]
[1646664836799,116.1,85.517,85.431,6.88014315]
[1646664836999,116.1,85.515,85.431,6.63014315]
[1646664837205,116.1,85.513,85.431,0.63014315]
[1646664837400,116.1,85.511,85.431,0.63014315]
[1646664837599,116.1,85.509,85.431,0.63014315]
[1646664837799,116.1,85.507,85.431,0.63014315]
[1646664838002,6.25,85.508,85.431,0.63014315]
[1646664838003,116.1,85.505,85.431,0.63014315]
[1646664838203,6.25,85.504,85.431,0.63014315]
[1646664838400,9.08613526,85.504,85.431,0.63014315]
[1646664838599,2.83613526,85.503,85.431,0.63014315]
[1646664838799,6.25,85.502,85.431,0.63014315]
[1646664839000,17.5609,85.5,85.431,0.63014315]
[1646664839202,6.099,85.499,85.431,6.63014315]
[1646664839400,0.25,85.499,85.431,6.63014315]
[1646664839801,0.25,85.499,85.432,6.0]
[1646664840004,0.25,85.499,85.44,17.5582]
[1646664840201,0.25,85.499,85.441,6.0]
[1646664840405,0.25,85.499,85.432,6.0]
[1646664840604,6.25,85.5,85.432,6.0]
[1646664841102,6.25,85.5,85.431,0.63014315]
[1646664841702,23.8078,85.5,85.431,0.63014315]
[1646664842204,22.6622,85.501,85.431,116.98014315]
[1646664842406,24.0935,85.525,85.433,116.1]
[1646664842606,24.0935,85.525,85.441,116.1]
[1646664842804,24.0935,85.525,85.461,116.1]
[1646664843004,24.0935,85.525,85.46,17.5457]
[1646664843005,24.0935,85.525,85.465,116.1]
[1646664843204,24.0935,85.525,85.467,116.1]
[1646664843406,24.0935,85.525,85.468,122.35]
[1646664843606,24.0935,85.525,85.469,58.49]
[1646664843806,0.25,85.524,85.47,6.25]
[1646664844106,24.0935,85.525,85.47,0.25]
[1646664844309,24.0935,85.525,85.47,6.25]
[1646664844910,5.848,85.542,85.47,6.25]
[1646664845110,17.5488,85.54,85.47,23.8012]
[1646664845314,11.847,85.539,85.471,116.1]
[1646664845507,11.847,85.539,85.472,0.25]
[1646664845709,11.847,85.539,85.473,116.1]
[1646664845911,11.847,85.539,85.475,116.1]
[1646664846110,11.847,85.539,85.477,116.1]
[1646664846309,11.847,85.539,85.49,17.5463]
[1646664846507,11.847,85.539,85.491,44.44714377]
[1646664846709,0.25,85.538,85.491,44.44714377]
[1646664847509,5.846,85.54,85.5,17.5452]
[1646664847709,5.846,85.558,85.501,6.0]
[1646664847910,5.846,85.558,85.502,116.1]
[1646664848109,48.5175,85.571,85.504,116.1]
[1646664848312,114.1,85.593,85.511,116.1]
[1646664848514,114.1,85.593,85.505,6.25]
[1646664848515,23.7834,85.592,85.514,0.2597034]
[1646664848710,23.7834,85.592,85.515,116.1]
[1646664848910,23.7834,85.592,85.521,160.74600274]
[1646664849111,114.1,85.593,85.521,160.74600274]
[1646664849112,24.7341,85.6,85.523,116.1]
[1646664849315,24.364,85.628,85.531,116.1]
[1646664849513,6.0,85.627,85.533,116.1]
[1646664849715,5.842,85.626,85.538,174.59]
[1646664849915,6.0,85.625,85.539,6.25]
[1646664850115,5.841,85.624,85.539,6.25]
[1646664850516,5.841,85.627,85.539,6.25]
[1646664850715,17.533,85.62,85.54,17.5344]
[1646664850915,2.83613526,85.624,85.54,17.5344]
[1646664850916,6.091,85.619,85.541,6.25]
[1646664851118,5.841,85.619,85.542,116.1]
[1646664851318,5.841,85.627,85.544,116.1]
[1646664851518,5.841,85.627,85.546,116.1]
[1646664851722,5.841,85.627,85.545,6.25]
[1646664851723,6.0,85.626,85.554,116.1]
[1646664852021,6.0,85.626,85.57,17.5266]
[1646664852220,48.527,85.628,85.571,6.25]
[1646664852620,2.83613526,85.652,85.572,116.1]
[1646664852820,48.4647,85.659,85.574,116.1]
[1646664853020,48.4647,85.659,85.576,38.82151291]
[1646664853221,48.4647,85.659,85.58,17.527]
[1646664853421,48.4647,85.659,85.581,6.25]
[1646664854120,26.12074646,85.658,85.578,6.0]
[1646664854322,5.839,85.657,85.579,0.25]
[1646664854522,17.5277,85.65,85.55,17.5318]
[1646664854720,11.841,85.649,85.55,17.5318]
[1646664854921,5.841,85.649,85.55,17.5318]
[1646664855122,9.08613526,85.648,85.55,17.5318]
[1646664855322,24.5531,85.647,85.55,17.5318]
[1646664855521,12.091,85.646,85.551,36.35264153]
[1646664855723,17.5318,85.63,85.56,17.5314]
[1646664855938,6.091,85.629,85.56,17.5314]
[1646664856145,8.92713526,85.629,85.552,64.49]
[1646664856350,58.07633526,85.628,85.52,16.86]
[1646664856542,0.17129705,85.626,85.516,24.1155]
[1646664856742,0.17129705,85.626,85.511,23.6433]
[1646664856743,0.17129705,85.619,85.511,23.6433]
[1646664856943,6.42129705,85.619,85.512,40.65048178]
[1646664857143,14.92189963,85.618,85.512,40.65048178]
[1646664857346,0.17129705,85.616,85.512,40.65048178]
[1646664857548,24.5531,85.616,85.512,40.65048178]
[1646664857747,100.0,85.614,85.513,6.25]
[1646664857948,17.5428,85.59,85.51,17.541]
[1646664858147,0.22065982,85.588,85.48,16.86]
[1646664858349,0.22065982,85.588,85.47,16.86]
[1646664858547,0.22065982,85.586,85.47,16.86]
[1646664858749,5.846,85.585,85.47,16.86]
[1646664858950,17.5483,85.56,85.49,17.5466]
[1646664859148,48.2742,85.559,85.49,17.5466]
[1646664859348,48.2742,85.559,85.491,6.25]
[1646664859748,48.2742,85.559,85.492,6.0]
[1646664859948,48.2742,85.559,85.493,0.25]
[1646664860149,48.2742,85.559,85.49,17.5464]
[1646664860350,48.2742,85.559,85.472,58.49]
[1646664860553,6.0,85.558,85.45,58.4983]
[1646664860753,0.25,85.557,85.45,75.3583]
[1646664860954,6.00231237,85.556,85.45,75.3583]
[1646664861150,0.15976929,85.549,85.45,16.86]
[1646664861356,6.40976929,85.549,85.434,100.0]
[1646664861551,6.40976929,85.549,85.435,40.69027377]
[1646664861751,8.68413526,85.548,85.436,64.49]
[1646664861952,6.25,85.547,85.436,64.49]
[1646664862155,17.5541,85.53,85.45,17.5549]
[1646664862354,6.098,85.529,85.451,6.0]
[1646664862552,6.098,85.529,85.452,0.25]
[1646664862553,45.1471,85.528,85.452,0.25]
[1646664862754,6.098,85.527,85.452,0.25]
[1646664863154,6.098,85.527,85.46,17.5528]
[1646664863353,17.5545,85.52,85.461,35.49277672]
[1646664863554,0.25,85.519,85.461,35.49277672]
[1646664864154,0.25,85.519,85.452,0.25]
[1646664864357,5.848,85.518,85.451,6.25]
[1646664864555,0.25,85.517,85.451,6.25]
[1646664864756,5.849,85.516,85.451,6.25]
[1646664864957,0.25,85.515,85.452,44.57824915]